bitfinex/quotes_ETHUSD_20260126
["timestamp","ask_amount","ask_price","bid_price","bid_amount"]
[1769392678108,2.06698769,2883.6,2882.2,8.57510167]
[1769392678390,1.11338439,2883.6,2882.3,8.57510167]
[1769392678540,1.11338439,2883.6,2882.4,8.57510167]
[1769392678944,0.86693381,2883.8,2882.4,8.57510167]
[1769392679852,8.14286112,2881.7,2880.4,0.06578264]
[1769392680051,0.04501351,2880.1,2880.0,0.06578264]
[1769392680376,0.022,2880.7,2880.0,1e-08]
[1769392680549,0.022,2880.9,2880.4,0.06578264]
[1769392680746,8.14286112,2881.4,2880.4,0.06578264]
[1769392680747,0.022,2881.1,2880.6,0.06578264]
[1769392682998,0.022,2881.1,2880.8,0.001]
[1769392683186,0.022,2881.1,2880.1,0.06578264]
[1769392683481,0.022,2881.0,2880.5,0.06578264]
[1769392684280,0.022,2881.1,2880.5,0.06578264]
[1769392684850,0.022,2881.1,2880.3,0.03384574]
[1769392685055,0.022,2881.1,2880.5,0.04950164]
[1769392686181,0.86757357,2881.6,2880.6,0.06578264]
[1769392686349,1.76732622,2881.7,2880.8,0.06578264]
[1769392687208,1.2,2881.5,2880.4,0.06578264]
[1769392687357,9.42478225,2881.6,2880.3,0.06578264]
[1769392687753,9.42478225,2881.6,2880.1,0.06578264]
[1769392688057,9.42478225,2881.3,2880.1,0.06578264]
[1769392688585,9.42478225,2881.3,2879.8,0.04734792]
[1769392688965,10.15178225,2881.2,2879.8,0.04734792]
[1769392689167,10.15178225,2881.2,2880.0,0.06578264]
[1769392689992,10.15178225,2881.2,2879.8,0.04734792]
[1769392690187,1.88290236,2881.1,2880.0,0.06578264]
[1769392690701,0.86772413,2881.1,2880.0,0.06578264]
[1769392691189,0.86770585,2881.2,2880.2,0.06578264]
[1769392691356,0.86765475,2881.4,2880.4,0.06578264]
[1769392691557,0.86765475,2881.4,2879.6,0.06578264]
[1769392691763,0.86765475,2881.4,2880.4,0.06578264]
[1769392691964,0.19868656,2881.3,2880.4,0.06578264]
[1769392693889,0.19868656,2881.3,2880.6,0.06578264]
[1769392694292,0.86832905,2881.8,2880.6,0.06578264]
[1769392694466,0.86754346,2881.7,2880.8,0.06578264]
[1769392694980,0.86754346,2881.7,2880.5,0.06578264]
[1769392695368,0.002,2881.1,2880.5,0.06578264]
[1769392696868,0.002,2881.1,2880.0,0.06578264]
[1769392697974,0.002,2881.1,2879.6,0.06578264]
[1769392698302,0.002,2881.1,2879.8,0.06578264]
[1769392699001,0.002,2881.1,2880.0,0.06578264]
[1769392700685,0.002,2881.1,2879.1,0.79278264]
[1769392700686,9.76465301,2880.8,2878.9,0.06578264]
[1769392700879,1.47208875,2880.7,2879.0,9.73244683]
[1769392701197,2.19908875,2880.7,2879.0,9.73244683]
[1769392701370,0.727,2880.6,2879.0,9.73244683]
[1769392701769,1.47208875,2880.7,2879.2,9.73244683]
[1769392701770,2.19908875,2880.7,2879.2,9.73244683]
[1769392702004,0.727,2880.7,2879.2,9.73244683]
[1769392702603,0.86787474,2880.6,2879.2,9.73244683]
[1769392702907,0.727,2880.8,2879.2,10.60073462]
[1769392704291,10.63438665,2881.1,2879.6,0.06578264]
[1769392704492,0.727,2881.0,2879.6,9.73244683]
[1769392705074,0.86778437,2880.9,2879.6,9.73244683]
[1769392705275,0.86778437,2880.9,2879.4,0.06578264]
[1769392705475,0.727,2881.0,2879.4,3.53869248]
[1769392705701,0.727,2881.0,2879.6,0.8681565]
[1769392706007,1.59475559,2881.0,2879.5,0.86819432]
[1769392706195,1.59475559,2881.0,2879.4,0.93400166]
[1769392706598,1.59475559,2881.0,2879.4,0.06578264]
[1769392706899,10.6324086,2881.0,2879.4,9.66666419]
[1769392707102,11.3594086,2881.0,2879.5,0.85954948]
[1769392707289,1.48323467,2880.9,2879.5,0.85954948]
[1769392707495,1.48323467,2880.9,2879.6,0.001]
[1769392707668,1.48523467,2880.9,2879.6,0.001]
[1769392708872,1.48523467,2880.9,2879.6,9.66766419]
[1769392709103,0.002,2880.9,2879.8,9.66666419]
[1769392709476,0.002,2881.1,2879.8,9.66666419]
[1769392711213,0.002,2881.1,2879.9,0.86808569]
[1769392712089,9.76465301,2880.6,2879.6,0.001]
[1769392712295,1.7162653,2880.5,2879.6,0.001]
[1769392712485,0.727,2880.6,2879.6,0.001]
[1769392712908,0.128,2880.9,2879.6,0.001]
[1769392713114,0.86787474,2880.6,2879.6,0.001]
[1769392713278,10.95465476,2880.5,2879.6,0.001]
[1769392713482,11.40990771,2880.4,2879.6,0.001]
[1769392713919,11.09546925,2880.9,2879.6,0.001]
[1769392714223,0.86781449,2880.8,2879.6,0.001]
[1769392714714,0.002,2881.1,2879.6,0.001]
[1769392714715,0.86972959,2881.1,2879.6,0.001]
[1769392714882,0.002,2881.1,2879.6,11.10178642]
[1769392715077,0.002,2881.1,2879.7,11.9689324]
[1769392718508,0.002,2881.1,2879.9,11.10078642]
[1769392719510,0.002,2881.1,2880.0,11.96884197]
[1769392719712,0.002,2880.9,2880.0,11.96884197]
[1769392720710,0.002,2880.9,2880.0,12.03462461]
[1769392721012,0.002,2880.9,2880.1,11.10078642]
[1769392721711,0.002,2880.9,2880.2,0.86799527]
[1769392721915,0.002,2880.9,2880.1,11.10078642]
[1769392721916,0.002,2880.9,2880.1,11.9687927]
[1769392723482,0.002,2881.1,2880.3,11.16656906]
[1769392723682,0.002,2881.1,2880.3,12.03451826]
[1769392724405,0.002,2881.1,2880.3,11.10078642]
[1769392724722,0.002,2881.1,2880.2,0.86798296]
[1769392725714,0.002,2881.1,2880.0,14.57299538]
[1769392726381,0.002,2881.1,2880.1,0.00834384]
[1769392727127,0.002,2881.1,2880.1,11.10913026]
[1769392727429,0.002,2881.1,2880.1,11.10078642]
[1769392727920,0.002,2881.1,2880.3,11.10078642]
[1769392729018,0.002,2881.1,2880.1,0.86800481]
[1769392729888,0.002,2881.1,2879.9,11.10178642]
[1769392730089,0.002,2881.1,2879.9,11.96985077]
[1769392731719,0.002,2880.9,2879.9,11.96985077]
[1769392743017,0.002,2880.9,2879.9,0.001]
[1769392743018,10.22965476,2880.9,2879.9,0.001]
[1769392743215,0.002,2880.9,2879.9,12.45528638]
[1769392744040,11.04168529,2880.9,2879.9,0.8690821]
[1769392744241,11.04168529,2880.9,2880.1,0.001]
[1769392745225,0.002,2880.9,2880.1,0.001]
[1769392746924,0.002,2880.9,2880.2,0.86799527]
[1769392748252,0.002,2880.9,2880.1,12.45520988]
[1769392748854,0.002,2880.9,2880.2,0.727]
[1769392749623,0.002,2880.9,2880.2,1.59497085]
[1769392751129,0.002,2880.9,2880.2,13.18117513]
[1769392751528,0.002,2880.9,2880.2,12.31320428]
[1769392751957,0.002,2880.9,2880.2,13.18119937]
[1769392752630,0.002,2880.9,2880.2,12.31320428]
[1769392753662,0.002,2880.9,2880.2,0.727]
[1769392755642,0.002,2880.9,2880.2,1.59498772]
[1769392755843,0.002,2880.9,2880.3,0.001]
[1769392760361,0.00445,2880.9,2880.3,0.001]
[1769392766349,12.58370457,2880.9,2880.3,0.001]
[1769392767471,12.58370457,2880.9,2880.5,0.001]
[1769392768177,12.58370457,2880.9,2880.3,0.001]
[1769392768374,12.57502673,2880.9,2880.3,0.001]
[1769392769749,12.58125457,2881.1,2880.3,0.001]
[1769392770471,13.99904646,2881.1,2880.3,0.001]
[1769392771175,14.86677957,2881.1,2880.3,0.001]
[1769392771973,13.99904646,2881.1,2880.3,0.001]
[1769392772145,14.86677197,2881.1,2880.3,0.001]
[1769392778170,13.99904646,2881.1,2880.3,0.001]
[1769392778352,12.13301645,2880.9,2880.3,0.001]
[1769392778752,12.13301645,2880.9,2880.5,0.001]
[1769392779150,12.13501645,2880.9,2880.5,0.001]
[1769392779564,12.86201645,2880.9,2880.5,0.001]
[1769392780896,12.86201645,2880.9,2880.1,0.001]
[1769392781067,13.60999067,2880.8,2880.1,0.001]
[1769392782490,13.60999067,2880.8,2879.9,0.001]
[1769392782696,0.002,2880.9,2880.1,12.6925393]
[1769392783399,0.002,2880.9,2880.4,12.6925393]
[1769392785280,0.002,2880.9,2880.1,12.6925393]
[1769392785505,12.13501645,2880.9,2880.0,0.727]
[1769392785801,13.3487181,2880.9,2880.0,0.727]
[1769392787479,12.13301645,2880.7,2880.0,0.727]
[1769392788779,12.13301645,2880.7,2879.9,0.001]
[1769392789199,0.727,2880.8,2879.9,12.6935393]
[1769392790700,0.727,2880.8,2880.2,0.001]
[1769392790901,2.01320164,2880.8,2880.2,0.001]
[1769392791199,3.47078334,2881.2,2880.2,0.001]
[1769392791200,12.13301645,2882.0,2880.8,13.70606334]
[1769392791401,12.13301645,2882.1,2881.2,4.2129133]
[1769392792107,0.729,2882.5,2881.2,4.2129133]
[1769392792108,0.002,2882.5,2881.6,16.9054526]
[1769392792282,0.0008,2882.7,2882.0,12.6925393]
[1769392792486,0.0008,2882.7,2882.1,1.69054526]
[1769392792688,0.0008,2882.7,2881.7,12.6925393]
[1769392793515,0.0008,2882.7,2881.4,12.6925393]
[1769392793516,12.13381645,2882.7,2881.4,12.6925393]
[1769392793702,12.86081645,2882.7,2881.4,13.4195393]
[1769392794007,12.86081645,2882.7,2881.2,5.08059883]
[1769392794008,12.13301645,2882.2,2880.8,12.6925393]
[1769392794180,0.06578264,2882.6,2880.7,0.86784369]
[1769392794181,12.13301645,2881.9,2880.7,0.86784369]
[1769392794375,12.13301645,2882.5,2881.0,0.86773115]
[1769392794609,4.2129133,2882.6,2880.9,4.2129133]
[1769392794610,12.13301645,2882.3,2880.9,4.2129133]
[1769392794810,12.13301645,2882.3,2880.9,17.77323636]
[1769392795020,12.13301645,2882.3,2880.9,16.9054526]
[1769392795189,12.13301645,2882.3,2880.9,17.77321894]
[1769392795391,12.86001645,2882.2,2880.9,17.77321894]
[1769392795607,14.30947739,2882.2,2880.9,17.77321894]
[1769392795797,13.58247739,2882.2,2880.9,17.77321894]
[1769392795988,0.727,2882.3,2881.2,16.9054526]
[1769392796795,0.727,2882.3,2881.2,12.6925393]
[1769392797117,0.727,2882.3,2881.2,13.56021645]
[1769392797621,0.727,2882.3,2881.2,12.6925393]
[1769392797807,2.01300165,2882.3,2881.2,12.6925393]
[1769392798152,1.28600165,2882.3,2881.2,12.6925393]
[1769392798413,1.28600165,2882.3,2881.2,13.56022469]
[1769392799188,0.0008,2882.7,2881.5,4.2129133]
[1769392799395,0.0008,2882.7,2881.6,12.6925393]
[1769392800423,0.0008,2882.7,2881.9,12.6925393]
[1769392800619,0.0008,2882.7,2882.1,16.9054526]
[1769392800784,0.0008,2882.7,2882.0,13.4195393]
[1769392800982,0.002,2883.2,2882.2,13.55993226]
[1769392801382,12.13501645,2883.2,2882.1,1.34195393]
[1769392801708,12.13501645,2883.2,2881.6,12.6925393]
[1769392801709,16.34592975,2882.8,2881.6,12.6925393]
[1769392801923,12.13301645,2882.7,2881.4,0.727]
[1769392802123,12.86001645,2882.7,2881.2,0.8676762]
[1769392802335,12.86001645,2882.7,2881.2,0.86768792]
[1769392802505,12.86001645,2882.7,2881.2,0.90240172]
[1769392802698,12.13301645,2882.5,2881.2,2.33458472]
[1769392802899,12.13301645,2882.5,2881.3,0.86763498]
[1769392803145,12.13301645,2882.5,2881.3,0.8676639]
[1769392803330,12.86001645,2882.5,2881.4,0.03470535]
[1769392803525,12.13301645,2882.5,2881.4,0.03470535]
[1769392803730,13.30581838,2882.5,2881.4,0.68157701]
[1769392804041,12.98387253,2883.1,2881.8,4.2129133]
[1769392804241,12.98387253,2883.1,2881.9,0.727]
[1769392805099,12.98387253,2883.1,2881.9,1.59447595]
[1769392806233,0.002,2883.2,2881.9,13.33078483]
[1769392807006,0.002,2883.2,2882.0,11.771007]
[1769392807205,0.002,2883.2,2882.2,0.86739296]
[1769392807637,0.002,2883.2,2882.2,12.60370184]
[1769392809458,0.002,2883.4,2882.3,11.77100339]
[1769392809613,0.002,2883.4,2882.3,11.73630888]
[1769392810247,0.002,2883.4,2882.4,11.77100219]
[1769392810431,0.002,2883.4,2882.5,1.46951746]
[1769392810620,0.002,2883.4,2882.6,0.727]
[1769392811426,0.002,2883.4,2882.6,1.59424655]
[1769392811747,0.002,2883.4,2882.6,13.36524633]
[1769392811949,0.002,2883.4,2882.6,13.33055543]
[1769392812150,0.002,2883.4,2882.7,1.3365483]
[1769392812448,0.002,2883.4,2882.7,13.07285718]
[1769392813443,0.002,2883.4,2882.7,1.3365483]
[1769392813615,0.002,2883.4,2882.7,0.90191128]
[1769392814251,0.002,2883.2,2882.7,0.90191128]
[1769392815355,0.002,2883.2,2881.6,9.90600748]
[1769392815356,12.98587253,2883.2,2881.4,0.128]
[1769392815681,12.98387253,2882.3,2880.4,12.49337556]
[1769392815956,12.98387253,2882.1,2880.5,0.03471619]
[1769392816163,12.98387253,2882.1,2880.5,0.76071619]
[1769392816451,4.8451361,2882.8,2880.5,0.76071619]
[1769392816452,13.70987253,2882.4,2881.1,0.06578264]
[1769392816755,2.29370944,2883.1,2881.3,0.06578264]
[1769392816756,12.00237172,2882.6,2881.3,0.06578264]
[1769392817849,12.86965945,2882.6,2881.3,0.06578264]
[1769392818148,1.28696594,2882.5,2881.3,0.06578264]
[1769392818851,1.28696594,2882.5,2881.3,0.93344578]
[1769392819347,1.28696594,2882.5,2881.3,0.06578264]
[1769392819544,1.28696594,2882.5,2881.2,0.03470775]
[1769392819715,2.15427195,2882.5,2881.2,0.03470775]
[1769392821044,1.41566437,2882.4,2881.2,0.03470775]
[1769392821251,13.41803609,2882.4,2881.2,0.03470775]
[1769392822049,14.28537081,2882.4,2881.1,0.79178264]
[1769392822747,13.41803609,2882.4,2881.1,0.8264916]
[1769392824124,14.28537426,2882.4,2881.1,0.79178264]
[1769392824319,13.43090915,2882.3,2881.1,0.79178264]
[1769392825357,13.43090915,2882.3,2881.1,0.06578264]
[1769392825652,13.43090915,2882.3,2881.1,0.79278264]
[1769392825852,13.43290915,2882.3,2881.1,0.79278264]
[1769392826021,14.30027553,2882.3,2881.1,0.79278264]
[1769392826224,13.57396571,2882.2,2881.1,0.727]
[1769392826458,13.57396571,2882.2,2880.9,0.06578264]
[1769392826633,13.57396571,2882.2,2880.9,0.79278264]
[1769392826833,13.57396571,2882.2,2880.9,1.66056487]
[1769392827030,13.57396571,2882.2,2880.7,0.9025469]
[1769392827236,12.00237172,2882.0,2880.8,0.727]
[1769392827433,12.00237172,2882.0,2880.9,0.03471134]
[1769392828220,12.8698323,2882.0,2880.8,0.727]
[1769392828651,12.00237172,2881.8,2880.8,0.727]
[1769392830179,0.0346897,2881.7,2880.8,0.727]
[1769392830474,12.00237172,2881.7,2880.8,0.727]
[1769392830635,1.20023717,2881.6,2880.8,0.727]
[1769392830830,12.00237172,2882.1,2880.8,1.6295192]
[1769392831137,12.03706142,2882.0,2880.8,0.727]
[1769392831365,12.00237172,2882.0,2880.9,0.727]
[1769392831666,0.0346897,2881.9,2880.9,0.727]
[1769392831987,13.20607786,2881.8,2880.9,0.727]
[1769392832180,12.03706142,2881.7,2880.9,0.727]
[1769392832332,12.86992307,2881.7,2880.9,0.727]
[1769392832523,12.86991735,2881.7,2880.9,0.727]
[1769392833676,12.59160484,2881.6,2880.9,0.727]
[1769392833883,1.34591505,2881.5,2880.9,0.727]
[1769392834046,12.55691514,2881.4,2880.2,0.10150245]
[1769392834248,12.55691514,2881.4,2880.3,0.727]
[1769392834249,13.42456245,2881.4,2880.3,0.727]
[1769392834458,13.42454909,2881.4,2880.3,0.727]
[1769392834947,13.42454909,2881.4,2880.2,0.001]
[1769392835167,12.55691514,2881.2,2880.2,0.001]
[1769392835975,1.82409192,2881.3,2880.2,0.001]
[1769392836145,0.90232365,2881.4,2880.2,0.001]
[1769392836872,0.90232921,2881.4,2880.2,0.001]
[1769392837058,12.55691514,2881.5,2880.2,12.74970301]
[1769392837262,0.0346897,2881.4,2880.2,12.7149832]
[1769392837780,13.55233819,2882.1,2880.3,12.7487018]
[1769392838095,12.55691514,2881.9,2880.4,1.27497018]
[1769392838386,12.59160484,2881.8,2880.4,1.30968758]
[1769392838563,12.55691514,2881.7,2880.4,2.17761542]
[1769392838750,12.55691514,2881.7,2880.4,14.89059862]
[1769392838958,12.55691514,2881.7,2880.4,14.85688122]
[1769392839177,1.34244496,2881.6,2880.5,0.80409558]
[1769392839374,1.34244496,2881.6,2880.6,0.03471498]
[1769392840985,1.34244496,2881.6,2880.5,0.83881177]
[1769392841382,2.21002345,2881.6,2880.5,0.83881177]
[1769392841681,1.34244496,2881.6,2880.5,0.83881177]
[1769392842457,12.55691514,2881.5,2880.4,0.001]
[1769392842652,13.42452653,2881.5,2880.4,0.001]
[1769392842853,1.34244496,2881.6,2880.4,12.7497006]
[1769392843197,1.34244496,2881.6,2880.5,0.727]
[1769392843198,14.80163022,2881.6,2880.5,0.727]
[1769392843367,12.55691514,2881.4,2880.5,0.727]
[1769392843557,12.55691514,2881.2,2880.4,0.001]
[1769392843757,12.59160484,2881.1,2880.4,0.001]
[1769392843955,12.59160484,2881.0,2880.4,0.001]
[1769392844189,12.55691514,2881.0,2880.4,0.001]
[1769392844387,1.25569151,2880.9,2880.4,0.001]
[1769392844697,1.82719245,2881.5,2880.4,0.001]
[1769392844910,0.0346897,2881.4,2880.4,12.7149832]
[1769392845585,12.59160484,2881.4,2880.4,0.001]
[1769392845885,12.55691514,2881.4,2880.4,0.001]
[1769392846251,12.55691514,2881.2,2880.4,0.001]
[1769392846482,13.85076532,2881.1,2880.4,0.001]
[1769392846687,13.81607562,2881.1,2880.4,0.001]
[1769392846873,0.0346897,2881.0,2880.4,0.001]
[1769392847072,0.90227293,2881.6,2880.4,0.001]
[1769392848176,13.45918807,2881.6,2880.4,0.001]
[1769392848487,13.42449837,2881.6,2880.4,0.001]
[1769392848688,12.59160484,2881.5,2880.4,0.001]
[1769392848863,1.34591881,2881.4,2880.4,0.001]
[1769392849660,0.0346897,2881.3,2880.4,0.001]
[1769392850460,0.0346897,2881.3,2880.4,0.728]
[1769392850889,1.38260851,2881.4,2880.4,0.728]
[1769392851690,1.34791881,2881.4,2880.5,0.03471619]
[1769392851989,1.3904834,2881.3,2880.4,0.7627174]
[1769392852492,1.3904834,2881.3,2880.4,0.728]
[1769392852789,12.55691514,2881.1,2880.4,0.001]
[1769392852962,0.0346897,2881.0,2880.4,0.001]
[1769392853164,1.25916048,2880.9,2880.4,0.001]
[1769392854265,13.81607562,2880.9,2880.4,0.001]
[1769392854997,12.55691514,2880.8,2880.4,0.001]
[1769392855693,12.55691514,2880.8,2880.2,0.001]
[1769392855867,12.55691514,2880.8,2879.9,0.001]
[1769392856067,12.55691514,2880.6,2879.9,0.001]
[1769392856490,12.55691514,2880.6,2879.2,0.727]
[1769392856895,0.86790487,2880.5,2879.2,0.727]
[1769392857195,12.55691514,2880.4,2879.2,0.727]
[1769392857367,13.75691514,2880.3,2879.2,0.727]
[1769392857562,1.37569151,2880.2,2879.2,0.727]
[1769392858295,13.93260665,2880.2,2879.2,0.727]
[1769392858666,13.93260665,2880.2,2878.9,0.03473548]
[1769392859173,13.93260665,2880.2,2878.9,0.90309767]
[1769392859373,1.37569151,2880.2,2878.9,13.61708087]
[1769392859585,13.42486946,2880.4,2879.0,12.7139832]
[1769392859797,13.42486946,2880.4,2878.8,1.59539805]
[1769392859979,13.42486946,2880.4,2878.9,0.03473548]
[1769392860186,13.42486946,2880.4,2878.9,12.74871868]
[1769392860500,14.15186946,2880.4,2878.9,12.7139832]
[1769392860673,1.76234988,2880.3,2878.9,14.40545829]
[1769392861004,14.31926502,2880.3,2878.9,14.40545829]
[1769392861174,0.86799527,2880.2,2878.9,14.40545829]
[1769392861370,15.18723785,2880.3,2878.9,14.40545829]
[1769392861571,1.76234988,2880.3,2879.1,12.7139832]
[1769392861776,0.0346897,2880.5,2879.3,12.7139832]
[1769392861984,12.59160484,2880.5,2879.2,0.727]
[1769392862187,12.55691514,2880.5,2879.3,0.03473066]
[1769392862513,0.86782615,2880.8,2879.2,13.4409832]
[1769392862514,12.59160484,2880.4,2879.2,0.727]
[1769392862687,12.55691514,2880.4,2879.2,0.727]
[1769392863687,13.42486176,2880.4,2879.2,0.727]
[1769392863887,0.0346897,2880.3,2879.2,0.727]
[1769392864112,12.32021256,2880.3,2879.2,0.727]
[1769392864276,1.31881592,2880.2,2879.2,0.727]
[1769392864478,1.35350562,2880.2,2879.2,0.727]
[1769392864678,1.31881592,2880.2,2879.2,0.727]
[1769392865028,12.28552286,2880.0,2877.9,12.13570387]
[1769392865176,12.28552286,2879.8,2878.1,0.86861993]
[1769392865383,12.28552286,2879.8,2878.2,0.03474393]
[1769392865902,12.28552286,2879.6,2878.2,0.90334126]
[1769392866108,13.01252286,2879.6,2878.2,0.90334126]
[1769392866502,1.23859952,2879.9,2878.5,12.17204418]
[1769392866707,2.14138493,2879.9,2878.5,12.13730387]
[1769392866908,1.51539078,2879.8,2878.6,1.21373039]
[1769392867475,13.80091364,2879.8,2878.6,1.21373039]
[1769392867683,13.80091364,2879.8,2878.5,0.0016]
[1769392868090,13.18835854,2879.7,2878.5,0.0016]
[1769392868290,13.15366884,2879.7,2878.5,0.0016]
[1769392868906,13.15366884,2879.7,2877.8,0.727]
[1769392868907,12.28552286,2878.8,2877.1,1.24777659]
[1769392869107,5.32030598,2879.4,2877.1,1.24777659]
[1769392869108,12.28552286,2878.6,2877.2,13.00460381]
[1769392869309,12.28552286,2878.4,2877.1,1.19687716]
[1769392869525,0.727,2878.3,2877.1,1.19687716]
[1769392869713,2.02825229,2878.3,2877.1,1.19687716]
[1769392870086,15.18236839,2878.3,2877.1,1.19687716]
[1769392870410,14.31377515,2878.3,2877.1,1.19687716]
[1769392870614,15.18235872,2878.3,2877.1,1.19687716]
[1769392871181,12.28552286,2878.1,2877.1,1.19687716]
[1769392871382,1.30125229,2878.0,2877.1,1.19687716]
[1769392871583,13.58677515,2878.0,2877.1,1.19687716]
[1769392872007,12.28552286,2877.8,2877.1,1.19687716]
[1769392872716,1.30125229,2878.0,2877.1,1.19687716]
[1769392873085,14.45545006,2878.0,2877.1,1.19687716]
[1769392873309,0.727,2878.4,2877.1,1.19687716]
[1769392873310,13.73106787,2877.9,2877.1,1.19687716]
[1769392873510,14.45806787,2877.9,2877.1,1.19687716]
[1769392873934,2.17254501,2877.9,2877.1,1.19687716]
[1769392874108,0.727,2878.0,2877.1,1.19687716]
[1769392874904,0.86856221,2878.4,2877.3,0.001]
[1769392875232,12.28552286,2878.5,2877.3,0.001]
[1769392876035,12.28552286,2878.1,2877.3,0.001]
[1769392876331,13.34765356,2878.0,2877.3,0.001]
[1769392876501,14.07465356,2878.0,2877.3,0.001]
[1769392876706,14.07465356,2878.0,2875.7,11.92042353]
[1769392876906,14.07465356,2878.0,2875.5,0.0201819]
[1769392876907,0.727,2877.9,2876.2,11.92042353]
[1769392877107,13.65456663,2877.8,2876.3,1.19204235]
[1769392877525,0.727,2877.7,2876.3,1.19204235]
[1769392878134,0.86877953,2877.6,2876.3,1.19204235]
[1769392878338,12.9878808,2877.6,2875.5,0.0201819]
[1769392878524,13.05366344,2877.6,2875.5,11.94060543]
[1769392878842,12.11910127,2877.3,2875.5,11.94060543]
[1769392879037,12.11910127,2877.3,2875.6,12.78978614]
[1769392879212,1.21191013,2877.2,2875.7,1.2809968]
[1769392879547,1.2,2877.1,2875.7,1.2809968]
[1769392879707,13.3310114,2877.2,2875.7,1.2809968]
[1769392879909,1.21191013,2877.2,2875.9,11.92042353]
[1769392880108,0.86887012,2877.3,2875.9,11.92042353]
[1769392880336,12.11910127,2878.0,2875.9,12.78971256]
[1769392880523,4.2462058,2877.9,2876.1,11.92042353]
[1769392880727,15.63730707,2877.9,2876.1,11.92042353]
[1769392880933,12.91288391,2877.8,2876.1,11.92042353]
[1769392881131,12.11910127,2877.6,2876.1,0.79706896]
[1769392881443,1.68220299,2877.7,2876.0,0.728]
[1769392881444,12.11910127,2877.4,2876.0,0.728]
[1769392881642,0.10922312,2877.5,2876.0,0.728]
[1769392881643,12.11910127,2877.2,2876.0,0.728]
[1769392881944,12.84710127,2877.1,2875.7,0.86935013]
[1769392882249,0.86896072,2877.0,2875.5,0.88957674]
[1769392883045,0.86896072,2877.0,2875.5,0.0201819]
[1769392883246,1.71917928,2876.9,2875.5,12.81001089]
[1769392883415,1.59683992,2877.4,2875.5,12.81001089]
[1769392883612,0.0434435,2877.3,2875.5,12.81001089]
[1769392883814,0.0434435,2877.3,2875.7,11.92042353]
[1769392884048,12.11910127,2877.1,2875.5,0.0201819]
[1769392884348,12.98815261,2876.7,2874.9,12.79000601]
[1769392884513,1.65301406,2876.6,2875.0,1.2790006]
[1769392884714,12.11910127,2876.4,2875.0,1.2790006]
[1769392884947,12.11910127,2876.4,2874.6,11.92042353]
[1769392885115,12.11910127,2876.4,2874.9,0.728]
[1769392885312,12.11910127,2875.8,2874.1,11.92042353]
[1769392885641,12.11910127,2876.1,2874.3,12.79018014]
[1769392885825,1.21848839,2876.0,2874.6,0.86966722]
[1769392886024,1.21848839,2876.0,2874.7,0.86964923]
[1769392886228,1.21848839,2876.0,2874.5,11.92042353]
[1769392886429,0.8692639,2876.0,2874.5,11.92042353]
[1769392886956,12.18488391,2875.8,2874.6,0.728]
[1769392887162,12.11910127,2875.8,2874.0,11.92042353]
[1769392887323,0.8692639,2876.0,2874.4,0.728]
[1769392887524,0.8692639,2876.0,2874.4,1.59774526]
[1769392887731,0.4346308,2875.9,2874.4,2.1054426]
[1769392888321,0.4346308,2875.9,2874.4,1.23569734]
[1769392888523,0.86911176,2876.5,2874.5,11.92042353]
[1769392888750,0.86911176,2876.5,2873.9,0.06578264]
[1769392888751,12.11910127,2875.6,2874.0,3.47942728]
[1769392888924,12.11910127,2875.6,2873.5,2.0]
[1769392888925,0.06578264,2876.2,2874.3,11.92042353]
[1769392889127,0.04346012,2876.2,2874.4,13.51816346]
[1769392889328,1.25971626,2876.2,2874.6,11.92042353]
[1769392889951,1.65301406,2876.6,2874.6,11.92042353]
[1769392890153,0.04345558,2876.5,2874.8,11.92042353]
[1769392890359,0.04345558,2876.5,2874.9,12.79001899]
[1769392890536,0.04345558,2876.5,2875.0,0.728]
[1769392890851,0.9125697,2876.5,2875.0,0.728]
[1769392891026,0.04345558,2876.5,2875.0,0.728]
[1769392891229,0.04345558,2876.5,2875.1,12.64667294]
[1769392891545,0.91254953,2876.6,2875.1,12.64667294]
[1769392891859,12.11910127,2875.7,2873.7,12.79037873]
[1769392892068,12.11910127,2875.7,2874.2,0.728]
[1769392892353,0.86941401,2875.5,2874.3,0.728]
[1769392892955,12.98851528,2875.5,2874.3,0.728]
[1769392893255,1.64661713,2875.4,2874.3,0.728]
[1769392893843,0.04346616,2875.8,2874.4,0.728]
[1769392894047,12.93031178,2876.3,2874.4,13.28665217]
[1769392894048,0.86923264,2876.1,2874.4,13.28665217]
[1769392894255,0.04346012,2876.2,2874.6,12.55865217]
[1769392894456,16.40651715,2876.8,2874.6,12.55865217]
[1769392894457,0.04345407,2876.6,2874.8,12.55865217]
[1769392894626,0.04345407,2876.6,2875.1,0.06578264]
[1769392894832,0.002,2877.8,2875.4,12.55865217]
[1769392894833,0.86880973,2877.5,2875.4,12.55865217]
[1769392895137,1.77107803,2877.4,2875.5,14.54909565]
[1769392896227,1.77107803,2877.4,2875.5,13.82109565]
[1769392896444,0.86887012,2877.3,2875.7,0.86935354]
[1769392896623,0.04344501,2877.2,2875.7,0.86935354]
[1769392897046,0.04344501,2877.2,2875.8,0.728]
[1769392898060,0.04344501,2877.2,2875.9,0.728]
[1769392898941,0.9123544,2877.2,2875.9,0.728]
[1769392899150,0.9123544,2877.2,2875.9,14.15593617]
[1769392899151,0.6549806,2877.2,2875.9,14.15593617]
[1769392899348,0.9123492,2877.2,2875.9,13.28665217]
[1769392899652,0.9123492,2877.2,2875.9,12.55865217]
[1769392899843,0.86885419,2877.4,2876.0,0.728]
[1769392900041,0.04543897,2877.6,2876.0,13.28665217]
[1769392900264,0.04543897,2877.6,2876.0,13.35243481]
[1769392900265,0.002,2877.6,2876.0,13.35243481]
[1769392900564,0.002,2877.6,2876.2,12.55865217]
[1769392901065,0.002,2877.6,2876.3,1.5971722]
[1769392901241,0.002,2877.6,2876.3,14.15582437]
[1769392901942,0.002,2877.6,2876.3,12.55865217]
[1769392902143,0.002,2877.6,2876.4,0.728]
[1769392902361,0.002,2877.6,2876.5,1.26244348]
[1769392903029,0.002,2877.6,2876.6,0.86908155]
[1769392903236,12.97575075,2877.6,2876.1,0.86920848]
[1769392903437,0.002,2877.6,2876.2,0.728]
[1769392903644,0.002,2877.6,2876.4,0.86914189]
[1769392903837,0.002,2877.6,2876.2,14.15583108]
[1769392904041,0.002,2877.6,2876.3,1.41558311]